bitfinex/quotes_ETHUSD_20220101
["timestamp","ask_amount","ask_price","bid_price","bid_amount"]
[1641029317250,0.00170527,3726.2,3725.9,0.67107]
[1641029317652,0.00113684,3726.1,3725.9,0.67107]
[1641029318108,0.00170527,3726.2,3725.9,0.67107]
[1641029318309,3.0514618,3726.2,3725.9,0.67107]
[1641029318512,0.00113684,3726.1,3725.9,0.67107]
[1641029320518,0.00113684,3726.1,3725.9,0.97107]
[1641029320922,0.00113684,3726.1,3725.9,2.27107]
[1641029326694,0.00113684,3726.1,3725.9,1.97107]
[1641029326894,0.00113684,3726.1,3725.9,0.97107]
[1641029327094,0.00113684,3726.1,3725.9,1.97107]
[1641029327294,0.00113684,3726.1,3725.9,0.97107]
[1641029331451,0.00113684,3726.1,3725.9,0.67107]
[1641029340247,0.00113684,3726.1,3725.9,0.97107]
[1641029340693,0.00113684,3726.1,3725.9,2.27107]
[1641029341194,0.00113684,3726.1,3725.9,1.67107]
[1641029342004,0.00113684,3726.1,3725.9,0.67107]
[1641029344454,0.00113684,3726.1,3725.9,0.97107]
[1641029344651,0.00113684,3726.1,3725.9,1.67107]
[1641029344852,0.00113684,3726.1,3725.9,0.67107]
[1641029348401,3.04975653,3726.5,3725.9,0.67107]
[1641029348801,0.00284211,3726.4,3725.9,0.67107]
[1641029349201,0.00227369,3726.3,3725.9,0.67107]
[1641029349609,0.00170527,3726.2,3725.9,0.67107]
[1641029350006,0.00113684,3726.1,3725.9,0.97107]
[1641029350208,0.00113684,3726.1,3725.9,1.97107]
[1641029350408,0.00227369,3726.3,3726.0,2.64164279]
[1641029350609,0.00227369,3726.3,3726.1,1.67081]
[1641029350907,0.00170527,3726.2,3726.1,4.62900543]
[1641029351307,0.00341054,3726.2,3726.1,5.48690039]
[1641029351513,1.36685311,3727.4,3726.8,0.67072]
[1641029351711,1.36685311,3727.4,3726.8,1.58352]
[1641029351947,0.00341054,3727.1,3726.8,1.88352]
[1641029352151,0.00341054,3727.1,3726.8,2.2128]
[1641029352348,0.00284211,3727.0,3726.9,0.84139326]
[1641029352548,0.00284211,3727.0,3726.9,1.84139326]
[1641029352849,0.00284211,3727.0,3726.9,2.14139326]
[1641029353448,0.00284211,3727.0,3726.9,2.81211326]
[1641029353651,0.00284211,3727.0,3726.9,3.78282326]
[1641029355990,0.00284211,3727.0,3726.9,2.94143]
[1641029356193,0.00284211,3727.0,3726.9,2.27071]
[1641029356194,3.05259864,3727.0,3726.9,2.27071]
[1641029356394,3.05259864,3727.0,3726.9,1.27071]
[1641029356795,3.00259864,3727.0,3726.9,1.27071]
[1641029357794,0.0677994,3727.4,3726.9,1.27071]
[1641029357995,0.0677994,3727.4,3727.1,0.67074]
[1641029358195,0.00170527,3727.3,3727.1,0.67074]
[1641029358596,0.00113685,3727.2,3727.1,0.67074]
[1641029360946,0.87823835,3727.2,3727.1,0.67074]
[1641029361147,0.87823835,3727.2,3727.0,1.0]
[1641029361394,0.87823835,3727.2,3726.6,0.0609]
[1641029361395,2.37488877,3727.1,3726.6,0.0609]
[1641029361550,2.37488877,3727.1,3726.1,0.69086489]
[1641029361748,2.37488877,3727.1,3726.7,0.00170527]
[1641029362047,2.37488877,3727.1,3726.2,0.00454738]
[1641029362251,0.82057782,3726.5,3726.3,0.67095]
[1641029362648,0.82057782,3726.5,3726.4,0.00341054]
[1641029364802,3.26248193,3726.5,3726.2,0.00454738]
[1641029365204,3.26248193,3726.5,3725.9,0.00625265]
[1641029365502,3.26248193,3726.5,3725.6,0.00795793]
[1641029365702,1.02187848,3725.9,3725.6,0.00795793]
[1641029365904,1.02187848,3725.9,3725.4,0.00909477]
[1641029366100,1.02187848,3725.9,3725.3,0.0096632]
[1641029366502,1.02187848,3725.9,3725.2,0.01023162]
[1641029366945,1.02187848,3725.9,3725.3,0.67112]
[1641029367345,1.02187848,3725.9,3725.4,0.00909477]
[1641029367550,2.36584298,3725.8,3725.4,0.00909477]
[1641029367846,1.02187848,3725.9,3725.4,0.00909477]
[1641029368446,1.02187848,3725.9,3725.5,0.67107]
[1641029368849,1.02187848,3725.9,3725.6,0.00795793]
[1641029369051,2.3213581,3725.8,3725.6,0.00795793]
[1641029369248,2.31229466,3725.8,3725.2,0.01023162]
[1641029369453,1.02187848,3725.9,3725.2,0.01023162]
[1641029369657,1.02187848,3725.9,3725.4,0.6711]
[1641029370058,1.02187848,3725.9,3725.5,0.00852635]
[1641029371107,2.61462005,3726.2,3725.5,0.00852635]
[1641029371707,2.52595026,3726.4,3725.5,0.00852635]
[1641029371909,2.68195049,3726.6,3725.5,0.00852635]
[1641029372713,0.79814225,3726.2,3725.5,0.00852635]
[1641029372910,2.70066714,3726.6,3725.7,0.67103]
[1641029373109,2.70066714,3726.6,3725.5,0.00852635]
[1641029373310,7.4178,3726.7,3725.8,0.00682108]
[1641029373510,7.4178,3726.7,3725.5,0.00852635]
[1641029373911,2.319393,3726.6,3725.5,0.00852635]
[1641029374112,0.96320497,3726.3,3725.4,0.30909477]
[1641029374355,0.96320497,3726.3,3725.7,1.34194]
[1641029374556,0.96320497,3726.3,3725.7,1.94194]
[1641029374759,0.96320497,3726.3,3725.9,0.67099]
[1641029375158,0.96320497,3726.3,3726.0,0.00568423]
[1641029375657,0.96320497,3726.3,3725.5,0.00852635]
[1641029376057,0.96320497,3726.3,3725.4,0.30909477]
[1641029376256,0.96320497,3726.3,3725.5,0.00852635]
[1641029376657,0.96320497,3726.3,3725.8,0.67102]
[1641029377060,0.96320497,3726.3,3725.9,0.00625265]
[1641029377757,0.96320497,3726.3,3725.6,0.00795793]
[1641029377960,0.96320497,3726.3,3725.7,0.67102]
[1641029378396,0.96320497,3726.3,3725.8,0.00682108]
[1641029378795,2.67958785,3726.2,3725.1,0.01080004]
[1641029378996,2.67956654,3726.2,3725.1,0.01080004]
[1641029379401,2.67956654,3726.2,3725.0,0.01136847]
[1641029379800,1.01441493,3725.7,3724.8,0.67119]
[1641029380002,3.05065554,3726.1,3724.9,0.01193689]
[1641029380403,0.5,3726.4,3724.8,0.01250531]
[1641029380605,2.67780811,3726.3,3724.8,0.01250531]
[1641029380900,0.5,3726.4,3724.8,0.01250531]
[1641029381502,1.0478678,3725.8,3724.8,0.01250531]
[1641029381701,1.0478678,3725.8,3725.0,0.67117]
[1641029382146,1.0478678,3725.8,3725.1,0.01080004]
[1641029382547,1.20549568,3724.7,3724.6,1.0]
[1641029382752,1.34237,3724.5,3724.2,0.68859119]
[1641029383150,1.34237,3724.5,3724.2,0.50399119]
[1641029383347,4.85,3724.3,3723.6,2.48516099]
[1641029383548,1.94237,3724.5,3723.6,2.48516099]
[1641029383549,2.87731588,3724.2,3723.6,2.48516099]
[1641029383749,0.76028957,3724.1,3723.7,0.00795793]
[1641029384349,1.37958248,3724.5,3723.7,0.00795793]
[1641029384552,5.79075544,3724.1,3723.7,0.00795793]
[1641029385352,1.37340766,3724.0,3723.7,0.00795793]
[1641029385593,2.32929108,3723.9,3723.7,0.00795793]
[1641029385800,2.31610175,3723.8,3723.7,0.00795793]
[1641029385995,1.37340766,3724.0,3723.7,0.00795793]
[1641029386196,2.35744191,3723.9,3723.7,0.00795793]
[1641029387002,4.4241821,3723.8,3723.7,0.00795793]
[1641029387201,6.99431083,3723.8,3723.7,0.00795793]
[1641029387501,2.57012873,3723.8,3723.7,0.00795793]
[1641029387700,2.79562094,3724.1,3723.7,0.00795793]
[1641029388502,2.44713425,3724.4,3723.7,0.00795793]
[1641029388903,2.32341602,3724.4,3723.7,0.00795793]
[1641029389104,2.3544486,3724.4,3723.7,0.00795793]
[1641029389548,2.32808542,3724.4,3723.7,0.00795793]
[1641029389849,2.61638349,3724.6,3723.7,0.00795793]
[1641029390049,2.5837091,3724.4,3723.7,0.00795793]
[1641029391549,1.0,3724.3,3723.7,0.00795793]
[1641029391749,2.7908634,3724.2,3723.7,0.00795793]
[1641029392349,1.48056997,3724.5,3723.7,0.00795793]
[1641029392350,2.61263634,3724.4,3723.7,0.00795793]
[1641029393595,1.0,3724.3,3723.7,0.00795793]
[1641029393798,2.37440423,3724.2,3723.7,0.00795793]
[1641029395101,3.97440423,3724.2,3723.7,0.00795793]
[1641029395401,2.97440423,3724.2,3723.7,0.00795793]
[1641029395600,1.0,3724.1,3723.7,0.00795793]
[1641029395798,2.60882834,3724.0,3723.7,0.00795793]
[1641029400593,1.0,3724.1,3723.7,0.00795793]
[1641029400795,2.39339417,3724.0,3723.7,0.00795793]
[1641029402196,0.03107376,3724.4,3723.7,0.00795793]
[1641029402197,0.62156,3724.3,3723.7,0.00795793]
[1641029402397,2.41210793,3724.2,3723.7,0.00795793]
[1641029402597,3.41210793,3724.2,3723.7,0.00795793]
[1641029403801,2.37487501,3724.4,3723.7,0.00795793]
[1641029404007,1.48056997,3724.5,3723.8,0.84347098]
[1641029404457,3.05215684,3724.1,3723.8,0.84347098]
[1641029405659,3.05215684,3724.4,3723.8,1.14347098]
[1641029407459,3.05215684,3724.4,3723.8,1.44347098]
[1641029407759,3.05215684,3724.4,3723.9,0.00682108]
[1641029408193,3.05215684,3724.4,3723.9,0.67814108]
[1641029408393,3.05215684,3724.4,3723.9,0.00682108]
[1641029408696,3.05215684,3724.4,3724.0,0.00625266]
[1641029409295,3.05215684,3724.4,3724.1,0.0206724]
[1641029409496,3.05215684,3724.4,3724.1,0.0413448]
[1641029409696,3.05215684,3724.4,3724.2,0.00511581]
[1641029411502,5.39810181,3724.4,3724.2,0.00511581]
[1641029411698,5.38208469,3724.4,3724.2,0.00511581]
[1641029411956,4.78096443,3724.3,3724.2,0.00511581]
[1641029412155,4.78096443,3724.3,3723.6,0.67344522]
[1641029412156,4.85,3724.2,3723.6,0.67344522]
[1641029412355,2.69753579,3724.1,3723.6,0.67344522]
[1641029412553,2.69753579,3724.1,3723.7,0.00284212]
[1641029412953,3.05215684,3724.3,3723.7,0.00284212]
[1641029413355,3.05215684,3724.0,3723.7,0.00284212]
[1641029413853,3.05215684,3724.2,3723.7,0.00284212]
[1641029414759,5.41888439,3724.4,3723.7,0.00284212]
[1641029415358,3.05215684,3724.3,3723.7,0.00284212]
[1641029416631,3.05329368,3724.4,3723.7,0.00284212]
[1641029416829,5.37212747,3724.4,3723.7,0.00284212]
[1641029417032,3.05329368,3724.4,3723.7,0.00284212]
[1641029417230,5.38252547,3724.4,3723.7,0.00284212]
[1641029417430,3.05329368,3724.4,3723.7,0.00284212]
[1641029417631,3.05215684,3724.2,3723.7,0.00284212]
[1641029418231,0.00113684,3724.4,3723.7,0.00284212]
[1641029418232,3.05329368,3724.4,3723.7,0.00284212]
[1641029419034,5.37285976,3724.4,3723.7,0.00284212]
[1641029419653,3.05329368,3724.4,3723.7,0.00284212]
[1641029419850,3.05215684,3724.3,3723.7,0.00284212]
[1641029420948,4.42101372,3724.4,3723.7,0.00284212]
[1641029421149,6.74073517,3724.4,3723.7,0.00284212]
[1641029421349,4.42101372,3724.4,3723.7,0.00284212]
[1641029423213,3.05329368,3724.4,3723.7,0.00284212]
[1641029423418,3.05215684,3724.3,3723.7,0.00284212]
[1641029424623,3.05329368,3724.4,3723.7,0.00284212]
[1641029425020,3.05215684,3724.2,3723.7,0.00284212]
[1641029426322,3.05329368,3724.4,3723.7,0.00284212]
[1641029426624,3.05215684,3724.1,3723.7,0.00284212]
[1641029427247,2.33735417,3724.3,3723.7,0.00284212]
[1641029427848,4.41987688,3724.2,3723.7,0.00284212]
[1641029428649,5.09140688,3724.2,3723.7,0.00284212]
[1641029429450,4.41987688,3724.2,3723.7,0.00284212]
[1641029429851,3.05215684,3724.3,3723.7,0.00284212]
[1641029432403,1.36772004,3724.1,3723.7,0.00284212]
[1641029432905,0.78954091,3724.0,3723.7,0.00284212]
[1641029433803,3.05215684,3723.9,3723.7,0.00284212]
[1641029435452,4.41987688,3723.9,3723.7,0.00284212]
[1641029436153,1.36772004,3723.9,3723.7,0.00284212]
[1641029437557,3.05215684,3723.8,3723.7,0.00284212]
[1641029437957,1.36772004,3724.0,3723.7,0.00284212]
[1641029438199,3.05215684,3723.8,3723.7,0.00284212]
[1641029438900,1.36772004,3724.1,3723.7,0.00284212]
[1641029439300,2.33661666,3724.2,3723.7,0.00284212]
[1641029439301,1.36772004,3724.0,3723.7,0.00284212]
[1641029441305,4.41987688,3724.1,3723.7,0.00284212]
[1641029441945,3.05215684,3724.1,3723.7,0.00284212]
[1641029442546,3.05215684,3724.1,3723.6,0.67344522]
[1641029442748,3.05215684,3724.0,3723.6,0.67344522]
[1641029443546,3.05215684,3724.1,3723.6,0.67344522]
[1641029443947,4.41987688,3724.1,3723.6,0.67344522]
[1641029445351,3.05215684,3724.1,3723.6,0.67344522]
[1641029446703,3.05215684,3724.1,3723.7,0.67141]
[1641029446904,3.05215684,3724.1,3723.7,0.97141]
[1641029447105,0.06780427,3724.2,3723.8,0.0022737]
[1641029447905,0.06780427,3724.2,3723.9,0.6713]
[1641029448104,0.06780427,3724.2,3723.9,1.34253]
[1641029448309,3.05153206,3724.1,3724.0,0.00113685]
[1641029449006,0.06780427,3724.2,3724.0,0.00113685]
[1641029449206,1.34237,3724.5,3724.2,0.87927]
[1641029449459,1.41017381,3724.5,3724.2,0.87927]
[1641029450061,3.0513157,3724.4,3724.2,0.87927]
[1641029450259,3.0513157,3724.4,3724.2,1.55058]
[1641029452459,3.0513157,3724.4,3724.2,0.67131]
[1641029452659,3.0513157,3724.4,3724.0,1.34365685]
[1641029453703,3.0513157,3724.4,3724.2,1.02786303]
[1641029453900,3.0513157,3724.4,3724.3,0.67126]
[1641029454201,3.0513157,3724.4,3724.3,0.97126]
[1641029456407,1.34237,3724.5,3724.3,0.97126]
[1641029457250,3.05119335,3724.4,3724.3,0.97126]
[1641029458854,3.05119335,3724.4,3724.3,1.97126]
[1641029459053,1.34237,3724.5,3724.3,1.97126]
[1641029459254,1.34237,3724.5,3724.3,4.67694643]
[1641029459456,1.34237,3724.5,3724.4,2.6233686]
[1641029459657,1.34237,3724.5,3724.4,3.6491898]
[1641029459957,1.34407527,3724.5,3724.4,3.9491898]
[1641029460159,1.34407527,3724.5,3724.4,2.6491898]
[1641029460359,1.34407527,3724.5,3724.4,1.3]
[1641029460608,1.34407527,3724.5,3724.3,0.97126]
[1641029460812,1.34407527,3724.5,3724.3,1.27126]
[1641029461011,0.00113684,3724.4,3724.3,1.27126]
[1641029461612,3.05218912,3724.4,3724.3,1.27126]
[1641029466456,3.05218912,3724.4,3724.3,0.6]
[1641029466753,3.05218912,3724.4,3724.3,0.3]
[1641029466955,3.05218912,3724.4,3724.1,0.97132]
[1641029467153,3.05218912,3724.4,3724.1,1.27132]
[1641029467554,3.05218912,3724.4,3724.1,2.27132]
[1641029467755,3.05218912,3724.4,3724.1,1.27132]
[1641029469202,3.05218912,3724.4,3724.1,0.67132]
[1641029471106,3.05218912,3724.4,3724.1,0.97132]
[1641029471307,3.05218912,3724.4,3724.0,1.00113685]
[1641029471308,3.05218912,3724.4,3724.2,0.67129]
[1641029471952,3.05218912,3724.4,3724.0,0.00113685]
[1641029473556,3.05218912,3724.4,3724.0,0.67246685]
[1641029473955,3.05218912,3724.4,3724.0,0.00113685]
[1641029474256,3.05218912,3724.4,3723.7,0.00284212]
[1641029474456,0.00113684,3724.4,3723.7,0.00284212]
[1641029474857,0.00113684,3724.4,3723.9,0.67136]
[1641029475058,3.05266805,3724.4,3723.9,0.67136]
[1641029475357,3.05266805,3724.4,3724.0,0.00113685]
[1641029478111,3.05266805,3724.4,3724.0,0.67247685]
[1641029478511,3.05266805,3724.4,3724.0,0.00113685]
[1641029478710,3.04629386,3724.4,3724.0,0.00113685]
[1641029478911,3.04629386,3724.4,3723.7,0.00284212]
[1641029479110,3.04629386,3724.4,3723.7,0.00397896]
[1641029480255,3.04629386,3724.4,3724.0,0.67135]
[1641029480655,3.04629386,3724.4,3724.1,0.00170527]
[1641029485230,1.34237,3724.5,3723.9,0.00284211]
[1641029485833,1.34237,3724.5,3723.6,2.61615522]
[1641029485834,1.34237,3724.5,3723.7,0.00397896]
[1641029486233,1.34237,3724.5,3724.0,0.67134]
[1641029486633,1.34237,3724.5,3724.1,0.00170527]
[1641029487466,1.34237,3724.5,3724.3,0.67128]
[1641029491014,1.34237,3724.5,3724.3,0.97128]
[1641029491214,1.34237,3724.5,3724.4,2.40450695]
[1641029491417,1.34237,3724.5,3724.4,3.70450695]
[1641029503852,1.20549568,3724.7,3724.4,3.70450695]
[1641029503853,1.20549568,3724.7,3724.5,1.21479009]
[1641029504050,1.20549568,3724.7,3724.6,3.39725111]
[1641029504250,1.20549568,3724.7,3724.6,3.69725111]
[1641029504453,1.20549568,3724.7,3724.6,4.69725111]
[1641029504859,1.20549568,3724.7,3724.6,5.67965389]
[1641029514007,1.20549568,3724.7,3724.6,2.95344278]
[1641029514813,1.20549568,3724.7,3724.6,5.33900824]
[1641029515011,1.20549568,3724.7,3724.6,5.35014961]
[1641029515213,1.20549568,3724.7,3724.6,2.95344278]
[1641029515414,1.20549568,3724.7,3724.6,5.35326118]
[1641029515614,1.20549568,3724.7,3724.6,2.95344278]
[1641029519153,1.20549568,3724.7,3724.6,1.97104]
[1641029521000,1.20549568,3724.7,3724.6,4.37309791]
[1641029522204,1.20549568,3724.7,3724.6,4.39461763]
[1641029523208,1.20549568,3724.7,3724.6,4.381502]
[1641029523408,1.20549568,3724.7,3724.6,1.97104]
[1641029525464,1.20549568,3724.7,3724.6,4.37111389]
[1641029526264,1.20549568,3724.7,3724.6,1.97104]
[1641029529310,1.20549568,3724.7,3724.6,4.37001115]
[1641029529513,1.20549568,3724.7,3724.6,1.97104]
[1641029530014,1.20549568,3724.7,3724.6,4.3719739]
[1641029530213,1.20549568,3724.7,3724.6,1.97104]
[1641029533468,1.20549568,3724.7,3724.6,4.39574048]
[1641029533861,1.20549568,3724.7,3724.6,1.97104]
[1641029534260,1.20549568,3724.7,3724.6,4.36005306]
[1641029539364,0.0678029,3725.1,3724.6,19.39901306]
[1641029539570,0.0678029,3725.1,3724.9,1.341879]
[1641029539771,1.36772004,3725.9,3725.1,2.25]
[1641029539969,1.36772004,3725.9,3725.2,2.49931226]
[1641029540170,0.00795793,3725.8,3725.6,0.81090637]
[1641029540371,0.00795793,3725.8,3725.6,1.41090637]
[1641029540568,1.42752004,3726.2,3725.7,1.3418506]
[1641029540771,1.42752004,3726.2,3725.8,0.6709]
[1641029540969,0.0096632,3726.1,3725.8,0.6709]
[1641029541373,0.00909478,3726.0,3725.8,0.6709]
[1641029541571,0.00909478,3726.0,3725.8,1.3417987]
[1641029541771,3.7626,3726.7,3725.9,0.6709]
[1641029541772,1.36772004,3726.5,3725.9,0.6709]
[1641029542171,0.01023163,3726.2,3725.9,0.6709]
[1641029542476,0.0096632,3726.1,3725.9,0.6709]
[1641029542872,0.00909478,3726.0,3725.9,0.6709]
[1641029543321,0.01080005,3726.0,3725.9,0.6709]
[1641029545527,0.01080005,3726.0,3725.9,0.9709]
[1641029545727,0.01080005,3726.0,3725.9,4.07977197]
[1641029545927,0.01080005,3726.0,3725.9,1.9709]
[1641029546127,0.01080005,3726.0,3725.9,2.2709]
[1641029546327,0.01080005,3726.0,3725.9,4.6436834]
[1641029546527,0.01080005,3726.0,3725.9,2.2709]
[1641029552016,0.01080005,3726.0,3725.9,0.6709]
[1641029552214,0.01080005,3726.0,3725.9,2.2709]
[1641029553215,0.01080005,3726.0,3725.9,0.6709]
[1641029558920,0.01080005,3726.0,3725.9,0.9709]
[1641029559124,0.01080005,3726.0,3725.9,4.51687791]
[1641029559322,0.01080005,3726.0,3725.9,4.81687791]
[1641029560125,0.01080005,3726.0,3725.9,2.2709]
[1641029560323,0.01080005,3726.0,3725.9,4.63294577]
[1641029560924,0.01080005,3726.0,3725.9,2.2709]
[1641029561124,0.01080005,3726.0,3725.9,4.67356838]
[1641029561325,0.01080005,3726.0,3725.9,2.2709]
[1641029561625,0.01080005,3726.0,3725.9,4.72930055]
[1641029562055,0.01080005,3726.0,3725.9,2.2709]
[1641029562857,0.01080005,3726.0,3725.9,4.68439735]
[1641029563054,3.06081598,3726.0,3725.9,2.2709]
[1641029563458,0.01080005,3726.0,3725.9,2.2709]
[1641029563656,0.01080005,3726.0,3725.9,4.67586823]
[1641029563860,0.01080005,3726.0,3725.9,2.2709]
[1641029564462,0.01080005,3726.0,3725.9,1.2709]
[1641029564862,3.06080708,3726.0,3725.9,1.2709]
[1641029566107,3.06080708,3726.0,3725.9,0.6709]
[1641029569366,3.06080708,3726.0,3725.9,0.9709]
[1641029569570,3.06080708,3726.0,3725.9,0.6709]
[1641029570270,3.06080708,3726.0,3725.9,0.9709]
[1641029570668,3.06080708,3726.0,3725.9,1.2709]
[1641029572669,0.01080005,3726.0,3725.9,1.2709]
[1641029573324,1.36772004,3726.8,3725.9,1.2709]
[1641029573624,0.01307374,3726.7,3726.3,0.67091]
[1641029574025,0.01250532,3726.6,3726.3,0.67091]
[1641029574224,0.01250532,3726.6,3726.1,1.34182]
[1641029574427,0.0119369,3726.5,3726.1,1.34182]
[1641029574625,0.0119369,3726.5,3726.4,0.67088]
[1641029574824,1.36772004,3726.9,3726.4,0.67088]
[1641029575226,0.01307374,3726.7,3726.4,0.67088]
[1641029575628,0.01250532,3726.6,3726.4,0.67088]
[1641029575926,0.0119369,3726.5,3726.4,0.67088]
[1641029576326,0.01364217,3726.5,3726.4,0.67088]
[1641029578767,0.01364217,3726.5,3726.3,0.67095]
[1641029579266,0.01136847,3726.4,3726.3,0.67095]
[1641029582613,0.01136847,3726.4,3726.1,0.67097]
[1641029583014,0.01080005,3726.3,3726.1,0.67097]
[1641029583514,0.01023163,3726.2,3725.9,0.671]
[1641029583917,0.0096632,3726.1,3725.9,0.671]
[1641029584364,0.00909478,3726.0,3725.9,0.671]
[1641029589515,0.00909478,3726.0,3725.7,0.3]
[1641029589919,0.00852636,3725.9,3725.4,1.94208]
[1641029590323,0.00795793,3725.8,3725.4,1.94208]
[1641029590521,0.85410339,3725.7,3725.4,1.94208]
[1641029590821,0.85410339,3725.7,3725.6,0.67106]
[1641029591119,0.8577229,3725.7,3725.6,0.97106]
[1641029591320,0.8577229,3725.7,3725.6,1.27106]
[1641029591721,3.90805492,3725.7,3725.6,1.27106]
[1641029592365,3.90805492,3725.7,3725.5,1.0]
[1641029592366,3.90805492,3725.7,3725.1,1.34218]
[1641029592563,3.90805492,3725.7,3724.6,0.42114329]
[1641029592766,0.00682108,3725.6,3724.6,0.42114329]
[1641029593064,0.00625266,3725.5,3724.6,0.42114329]
[1641029593264,0.00625266,3725.5,3724.6,0.35904329]
[1641029593464,0.00568424,3725.4,3724.6,0.35904329]
[1641029593864,2.54892084,3725.6,3724.6,0.35904329]
[1641029593865,0.00511581,3725.3,3724.6,0.35904329]
[1641029594270,0.83930105,3725.1,3724.6,0.35904329]
[1641029594467,1.51067105,3725.1,3724.6,0.35904329]
[1641029594669,1.51067105,3725.1,3724.5,1.21479009]
[1641029594670,0.00341054,3725.0,3724.5,1.21479009]
[1641029595071,0.00284212,3724.9,3724.5,1.21479009]
[1641029595470,0.0022737,3724.8,3724.5,1.21479009]
[1641029595918,0.00170527,3724.7,3724.5,1.21479009]
[1641029596316,3.05033202,3724.9,3724.5,1.21479009]
[1641029596317,0.00113685,3724.6,3724.5,1.21479009]
[1641029613538,3.05232851,3724.6,3724.5,1.21479009]
[1641029614136,0.00113685,3724.6,3724.5,1.21479009]
[1641029616174,2.32504839,3724.6,3724.5,1.21479009]
[1641029616579,0.00113685,3724.6,3724.5,1.21479009]
[1641029617174,0.00113685,3724.6,3724.5,0.21479009]
[1641029617175,3.05232851,3724.6,3724.5,0.21479009]
[1641029617777,0.00113685,3724.6,3724.5,0.21479009]
[1641029618215,3.05232851,3724.6,3724.5,0.21479009]
[1641029618620,5.42192992,3724.6,3724.5,0.21479009]
[1641029621319,3.05232851,3724.6,3724.5,0.21479009]
[1641029622362,5.60529477,3724.6,3724.5,0.21479009]
[1641029622562,3.05232851,3724.6,3724.5,0.21479009]
[1641029622767,5.77833691,3724.6,3724.5,0.21479009]
[1641029622966,3.05232851,3724.6,3724.5,0.21479009]
[1641029623565,5.60609737,3724.6,3724.5,0.21479009]
[1641029624064,3.05232851,3724.6,3724.5,0.21479009]
[1641029624470,5.67735916,3724.6,3724.5,0.21479009]
[1641029624670,6.34882916,3724.6,3724.5,0.21479009]
[1641029625068,3.72379851,3724.6,3724.5,0.21479009]
[1641029625468,6.3929213,3724.6,3724.5,0.21479009]
[1641029626119,7.76064134,3724.6,3724.5,0.21479009]
[1641029626721,6.39178445,3724.6,3724.5,0.21479009]
[1641029627322,7.75950449,3724.6,3724.5,0.21479009]
[1641029628122,9.05950449,3724.6,3724.5,0.21479009]
[1641029629362,6.3903817,3724.6,3724.5,0.21479009]
[1641029630571,5.02266166,3724.6,3724.5,0.21479009]
[1641029630770,4.35119166,3724.6,3724.5,0.21479009]
[1641029631171,3.35119166,3724.6,3724.5,0.21479009]
[1641029631770,4.72237354,3724.6,3724.5,0.21479009]
[1641029632171,4.42237354,3724.6,3724.5,0.21479009]
[1641029632970,3.05119166,3724.6,3724.5,0.21479009]
[1641029634644,6.65766324,3724.6,3724.5,0.21479009]
[1641029634842,7.65766324,3724.6,3724.5,0.21479009]
[1641029635042,9.02884512,3724.6,3724.5,0.21479009]
[1641029635642,3.72265166,3724.6,3724.5,0.21479009]
[1641029635846,3.05119166,3724.6,3724.5,0.21479009]
[1641029637660,5.50187588,3724.6,3724.5,0.21479009]
[1641029638562,7.47332588,3724.6,3724.5,0.21479009]
[1641029639365,6.17332588,3724.6,3724.5,0.21479009]
[1641029639568,3.72264166,3724.6,3724.5,0.21479009]
[1641029639771,3.05119166,3724.6,3724.5,0.21479009]
[1641029641211,4.42232422,3724.7,3724.5,0.21479009]
[1641029641609,4.42402949,3724.7,3724.5,0.21479009]
[1641029642010,3.05289693,3724.7,3724.5,0.21479009]
[1641029642611,4.42402949,3724.7,3724.5,0.21479009]
[1641029644015,3.05289693,3724.7,3724.5,0.21479009]
[1641029644668,4.42402949,3724.7,3724.5,0.21479009]
[1641029645271,3.26031504,3724.6,3724.5,0.21479009]
[1641029645473,0.96852585,3724.6,3724.5,0.21479009]
[1641029645970,3.05289693,3724.7,3724.5,0.21479009]
[1641029646174,3.05119166,3724.6,3724.5,0.21479009]
[1641029646875,4.08048568,3724.7,3724.5,0.21479009]
[1641029647477,4.42287684,3724.6,3724.5,0.21479009]
[1641029650321,3.05119166,3724.6,3724.5,0.21479009]
[1641029651326,4.42458211,3724.7,3724.5,0.21479009]
[1641029652768,6.70752485,3724.7,3724.5,0.21479009]
[1641029653067,4.42458211,3724.7,3724.5,0.21479009]
[1641029653471,3.05119166,3724.6,3724.5,0.21479009]
[1641029653874,4.42458211,3724.7,3724.5,0.21479009]
[1641029654370,1.37168518,3724.6,3724.5,0.21479009]
[1641029658521,4.42458211,3724.7,3724.5,0.21479009]
[1641029659024,3.05119166,3724.6,3724.5,0.21479009]
[1641029659222,5.3529982,3724.6,3724.5,0.21479009]
[1641029659479,5.36370603,3724.6,3724.5,0.21479009]
[1641029659681,5.37866414,3724.6,3724.5,0.21479009]
[1641029659882,3.05119166,3724.6,3724.5,0.21479009]
[1641029661483,3.05289693,3724.7,3724.5,0.21479009]
[1641029661689,5.35624718,3724.7,3724.5,0.21479009]
[1641029661886,3.05289693,3724.7,3724.5,0.21479009]
[1641029663114,1.37307725,3724.6,3724.5,0.21479009]
[1641029666728,3.67140036,3724.6,3724.5,0.21479009]
[1641029667364,3.05119166,3724.6,3724.5,0.21479009]
[1641029667964,3.05289693,3724.7,3724.5,0.21479009]
[1641029668364,2.29130989,3724.6,3724.5,0.21479009]
[1641029669471,5.34250155,3724.6,3724.5,0.21479009]
[1641029672323,0.21479009,3724.5,3723.7,0.0582]
[1641029672525,0.21479009,3724.5,3723.6,0.67344522]
[1641029672526,4.06097317,3724.5,3723.6,0.67344522]
[1641029672724,0.76270716,3724.0,3723.8,0.00341054]
[1641029673125,2.13598517,3724.0,3723.8,0.00341054]
[1641029673925,1.37327801,3723.9,3723.8,0.00341054]
[1641029674124,4.42446967,3723.9,3723.8,0.00341054]
[1641029675376,6.75289954,3723.9,3723.8,0.00341054]
[1641029675777,6.05119153,3723.9,3723.8,0.00341054]
[1641029678415,6.35119153,3723.9,3723.8,0.00341054]
[1641029678615,7.35119153,3723.9,3723.8,0.00341054]
[1641029679017,6.05119153,3723.9,3723.8,0.00341054]
[1641029679216,7.35119153,3723.9,3723.8,0.00341054]
[1641029679419,8.75119153,3723.9,3723.8,0.00341054]
[1641029680420,5.75119166,3723.9,3723.8,0.00341054]
[1641029683380,2.7,3723.9,3723.8,0.00341054]
[1641029684588,5.75202048,3723.9,3723.8,0.00341054]
[1641029684990,8.09841182,3723.9,3723.8,0.00341054]
[1641029685192,9.39841182,3723.9,3723.8,0.00341054]
[1641029685388,9.69841182,3723.9,3723.8,0.00341054]
[1641029686426,10.05796538,3723.9,3723.8,0.00341054]
[1641029686628,8.45309414,3723.9,3723.8,0.00341054]
[1641029686829,6.42360048,3723.9,3723.8,0.00341054]
[1641029687228,5.75202048,3723.9,3723.8,0.00341054]
[1641029688930,6.42359048,3723.9,3723.8,0.00341054]
[1641029689129,8.02359048,3723.9,3723.8,0.00341054]
[1641029689971,6.42359048,3723.9,3723.8,0.00341054]
[1641029690474,5.75202048,3723.9,3723.8,0.00341054]